fUST/lending_fUST_20250801
["ID","MTS","AMOUNT","RATE_DAILY","PERIOD"]
[376609452,1754050253683,-460.0,0.00024657,10]
[376609454,1754050253692,-631.42,0.00024657,10]
[376609456,1754050253701,-1102.42,0.00024657,10]
[376609458,1754050253711,-460.0,0.00024657,10]
[376609460,1754050253720,-574.92,0.00024657,10]
[376609461,1754050253729,-460.0,0.00024657,10]
[376609464,1754050253739,-631.42,0.00024657,10]
[376609466,1754050253748,-460.0,0.00024657,10]
[376609467,1754050253757,-631.42,0.00024657,10]
[376609470,1754050253767,-1102.42,0.00024657,10]
[376609472,1754050253776,-460.0,0.00024657,10]
[376609474,1754050253787,-1102.42,0.00024657,10]
[376609476,1754050253796,-631.42,0.00024657,10]
[376609478,1754050253806,-631.42,0.00024657,10]
[376609480,1754050253814,-1102.42,0.00024657,10]
[376609482,1754050253823,-1102.42,0.00024657,10]
[376609484,1754050253833,-631.42,0.00024657,10]
[376609486,1754050253842,-464.96029258,0.00024657,10]
[376609488,1754050253851,-460.0,0.00024657,10]
[376609490,1754050253860,-574.92,0.00024657,10]
[376609492,1754050253870,-631.42,0.00024657,10]
[376609494,1754050253879,-574.92,0.00024657,10]
[376609496,1754050253889,-1102.42,0.00024657,10]
[376609498,1754050253898,-631.42,0.00024657,10]
[376609510,1754050253907,-1102.42,0.00024657,10]
[376609513,1754050254024,-631.42,0.00024657,10]
[376609515,1754050254035,-461.19878474,0.00024657,10]
[376609517,1754050254043,-460.0,0.00024657,10]
[376609519,1754050254053,-631.42,0.00024657,10]
[376609521,1754050254063,-1102.42,0.00024657,10]
[376609523,1754050254072,-464.26665719,0.00024657,10]
[376609525,1754050254081,-631.51763875,0.00024657,10]
[376609527,1754050254091,-1102.42,0.00024657,10]
[376609529,1754050254101,-460.0,0.00024657,10]
[376609531,1754050254110,-460.0,0.00024657,10]
[376609533,1754050254119,-1102.42,0.00024657,10]
[376609535,1754050254128,-574.92,0.00024657,10]
[376609537,1754050254137,-1102.44878195,0.00024657,10]
[376609539,1754050254146,-574.92,0.00024657,10]
[376609541,1754050254155,-574.92,0.00024657,10]
[376609542,1754050254164,-574.92,0.00024657,10]
[376609545,1754050254173,-574.92,0.00024657,10]
[376609546,1754050254183,-574.92,0.00024657,10]
[376609548,1754050254192,-575.14469082,0.00024657,10]
[376609550,1754050254201,-460.0,0.00024657,10]
[376609553,1754050254210,-460.0,0.00024657,10]
[376609555,1754050254219,-460.0,0.00024657,10]
[376609557,1754050254228,-460.0,0.00024657,10]
[376609559,1754050254238,-460.0,0.00024657,10]
[376609561,1754050254247,-460.0,0.00024657,10]
[376609563,1754050254256,-460.0,0.00024657,10]
[376609565,1754050254265,-460.0,0.00024657,10]
[376609567,1754050254275,-460.0,0.00024657,10]
[376609569,1754050254284,-6018.39,0.00024657,10]
[376609571,1754050254293,-460.0,0.00024657,10]
[376609573,1754050254302,-460.0,0.00024657,10]
[376609575,1754050254312,-460.0,0.00024657,10]
[376609577,1754050254321,-460.0,0.00024657,10]
[376609578,1754050254330,-6018.39,0.00024657,10]
[376609580,1754050254339,-460.0,0.00024657,10]
[376609582,1754050254348,-460.0,0.00024657,10]
[376609584,1754050254358,-6018.39,0.00024657,10]
[376609586,1754050254367,-460.0,0.00024657,10]
[376609588,1754050254376,-460.0,0.00024657,10]
[376609590,1754050254385,-460.0,0.00024657,10]
[376609592,1754050254394,-460.0,0.00024657,10]
[376609594,1754050254403,-460.0,0.00024657,10]
[376609596,1754050254413,-460.0,0.00024657,10]
[376609598,1754050254422,-6018.39,0.00024657,10]
[376609600,1754050254431,-151.0,0.00024657,7]
[376609602,1754050254440,-337.81644779,0.00024657,10]
[376609604,1754050254449,-460.0,0.00024657,10]
[376609606,1754050254458,-151.0,0.00024657,7]
[376609608,1754050254467,-6018.39,0.00024657,10]
[376609610,1754050254476,-151.0,0.00024657,7]
[376609612,1754050254486,-6018.39,0.00024657,10]
[376609614,1754050254495,-198.208354,0.00024657,7]
[376609616,1754050254504,-6018.39,0.00024657,10]
[376609618,1754050254513,-460.0,0.00024657,10]
[376609620,1754050254522,-460.0,0.00024657,10]
[376609622,1754050254531,-460.0,0.00024657,10]
[376609624,1754050254542,-460.0,0.00024657,10]
[376609627,1754050254552,-6018.39,0.00024657,10]
[376609629,1754050254561,-516.91360445,0.00024657,10]
[376609630,1754050254570,-460.0,0.00024657,10]
[376609633,1754050254580,-1116.73791557,0.00024657,10]
[376613237,1754050422555,157.98385,0.00013699,2]
[376613238,1754050541771,243.13681276,0.00013699,2]
[376613239,1754051101792,257.5967414,0.00017854,2]
[376613240,1754051182480,160.0,0.00013699,2]
[376613241,1754051182819,260.0,0.00014247,2]
[376613242,1754051183144,360.0,0.00014795,2]
[376613243,1754051194343,5000.0,0.0001881,2]
[376613244,1754051209597,5000.0,0.0001881,2]
[376613246,1754051239875,152.3548301,0.0001881,2]
[376613247,1754051309292,5000.0,0.0001881,2]
[376613252,1754051377624,158.368168,0.00013699,2]
[376613258,1754051392308,3511.6261406,0.00018,2]
[376613259,1754051403708,164.497858,0.00017676,2]
[376613316,1754051431891,-5000.0,0.00019006,2]
[376613318,1754051431901,-1200.0,0.00019198,2]
[376613320,1754051431911,-300.0,0.0001962,2]
[376613322,1754051431922,-5084.6851988,0.00019621,2]
[376613324,1754051431933,-160.0,0.0002,3]
[376613326,1754051431943,-158.368168,0.00020187,2]
[376613328,1754051431954,-68941.5384499,0.00020368,2]
[376613330,1754051431963,-500.0,0.00020373,2]
[376613332,1754051431972,-200.0,0.00020775,15]
[376613334,1754051431981,-200.0,0.00020775,15]
[376613336,1754051431991,-200.0,0.00020775,15]
[376613338,1754051432004,-200.0,0.00020775,15]
[376613340,1754051432013,-200.0,0.00020775,15]
[376613342,1754051432024,-24804.25202886,0.00020775,2]
[376613344,1754051432033,-150.999999,0.00021,2]
[376613345,1754051432044,-420.0,0.00021372,2]
[376613346,1754051432053,-3298.09,0.00021562,3]
[376613347,1754051432062,-3028.54900563,0.00021689,3]
[376613348,1754051432074,-971.45099437,0.00021689,3]
[376613349,1754051432083,-3442.79784953,0.00021739,2]
[376613350,1754051432094,-436.73195823,0.00021739,2]
[376613351,1754051432106,-50768.91102967,0.00021739,2]
[376613352,1754051432117,-21222.5098634,0.00021739,2]
[376613353,1754051432127,-5000.0,0.00021882,3]
[376613354,1754051432136,-160.0,0.00021882,3]
[376613355,1754051432145,-12644.26590849,0.00021882,3]
[376613356,1754051432155,-294.2662048,0.00021966,2]
[376613357,1754051432164,-500.0,0.00021966,2]
[376613358,1754051432174,-605.25164421,0.00021966,2]
[376613359,1754051432183,-500.0,0.00021966,2]
[376613360,1754051432192,-500.0,0.00021966,2]
[376613361,1754051432202,-500.0,0.00021966,2]
[376613362,1754051432211,-500.0,0.00021966,2]
[376613363,1754051432221,-500.0,0.00021966,2]
[376613364,1754051432230,-500.0,0.00021966,2]
[376613365,1754051432241,-500.0,0.00021966,2]
[376613366,1754051432251,-500.0,0.00021966,2]
[376613367,1754051432264,-500.0,0.00021966,2]
[376613368,1754051432273,-500.0,0.00021966,2]
[376613369,1754051432283,-399.92686336,0.00021966,2]
[376613370,1754051432292,-500.0,0.00021966,2]
[376613371,1754051432301,-500.0,0.00021966,2]
[376613372,1754051432311,-500.0,0.00021966,2]
[376613373,1754051432321,-500.0,0.00021966,2]
[376613374,1754051432338,-500.0,0.00021966,2]
[376613375,1754051432349,-633.15992239,0.00021966,2]
[376613376,1754051432359,-500.0,0.00021966,2]
[376613377,1754051432368,-500.0,0.00021966,2]
[376613378,1754051432380,-500.0,0.00021966,2]
[376613379,1754051432390,-500.0,0.00021966,2]
[376613380,1754051432399,-500.0,0.00021966,2]
[376613381,1754051432410,-500.0,0.00021966,2]
[376613382,1754051432419,-500.0,0.00021966,2]
[376613383,1754051432429,-500.0,0.00021966,2]
[376613384,1754051432438,-500.0,0.00021966,2]
[376613385,1754051432448,-500.0,0.00021966,2]
[376613386,1754051432457,-500.0,0.00021966,2]
[376613387,1754051432466,-500.0,0.00021966,2]
[376613388,1754051432476,-500.0,0.00021966,2]
[376613389,1754051432484,-500.0,0.00021966,2]
[376613390,1754051432494,-500.0,0.00021966,2]
[376613391,1754051432508,-508.96855191,0.00021966,2]
[376613392,1754051432518,-500.0,0.00021966,2]
[376613393,1754051432528,-500.0,0.00021966,2]
[376613394,1754051432538,-641.0005442,0.00021966,2]
[376613395,1754051432548,-165.4964196,0.00021966,2]
[376613396,1754051432558,-478.98364421,0.00021966,2]
[376613397,1754051432567,-500.0,0.00021966,2]
[376613398,1754051432577,-1345.600171,0.00021967,2]
[376613399,1754051432587,-559.30586738,0.00021973,2]
[376613400,1754051432597,-500.0,0.00021973,2]
[376613401,1754051432607,-500.0,0.00021973,2]
[376613402,1754051432625,-500.0,0.00021973,2]
[376613403,1754051432634,-575.7063143,0.00021973,2]
[376613404,1754051432644,-500.94423311,0.00021973,2]
[376613405,1754051432654,-500.0,0.00021973,2]
[376613406,1754051432664,-11012.91325215,0.00021996,2]
[376613442,1754051438123,-1631.35265634,0.00021996,2]
[376613443,1754051438134,-215.03686253,0.00021996,2]
[376613444,1754051438143,-526.925583,0.00021996,2]
[376613445,1754051438153,-1000.0,0.00021996,3]
[376613446,1754051438163,-4812.0,0.00022,2]
[376613447,1754051438172,-1876.67,0.00022,7]
[376613448,1754051438181,-412.05,0.00022,2]
[376613449,1754051438190,-6940.76,0.00022,7]
[376613450,1754051438199,-2424.24,0.00022,7]
[376613451,1754051438208,-181.0,0.00022,2]
[376613452,1754051438217,-231.52694941,0.0002224,2]
[376613453,1754051438226,-500.0,0.00022521,2]
[376613454,1754051438236,-463.13408021,0.00022521,2]
[376613455,1754051438245,-454.76197448,0.00022557,2]
[376613456,1754051438254,-200.0,0.00022806,15]
[376613457,1754051438268,-200.0,0.00022806,15]
[376613458,1754051438278,-200.0,0.00022806,15]
[376613459,1754051438287,-200.0,0.00022806,15]
[376613460,1754051438296,-200.0,0.00022806,15]
[376613461,1754051438306,-200.0,0.00022806,15]
[376613462,1754051438315,-200.0,0.00022806,15]
[376613463,1754051438324,-412.05,0.00022807,2]
[376613464,1754051438334,-305.9,0.0002289,3]
[376613465,1754051438343,-152.95,0.0002289,3]
[376613466,1754051438358,-458.89,0.0002289,3]
[376613467,1754051438367,-4056.69429832,0.000229,7]
[376613468,1754051438377,-611.81,0.0002298,3]
[376613469,1754051438387,-1223.62,0.0002299,3]
[376613470,1754051438397,-160.0,0.00023,2]
[376613471,1754051438406,-840.28779658,0.00023,3]
[376613472,1754051438416,-587.0,0.00023281,2]
[376613473,1754051438425,-1000.0000075,0.000233,7]
[376613474,1754051438435,-412.05,0.00023615,2]
[376613475,1754051438444,-296.10457777,0.00023917,2]
[376613476,1754051438452,-151.0,0.00023976,2]
[376613477,1754051438461,-151.0,0.00023976,2]
[376613478,1754051438470,-151.0,0.00023976,2]
[376613479,1754051438479,-151.0,0.00023976,2]
[376613480,1754051438488,-151.0,0.00023976,2]
[376613481,1754051438498,-151.0,0.00023976,2]
[376613482,1754051438507,-151.0,0.00023976,2]
[376613483,1754051438520,-151.0,0.00023976,2]
[376613484,1754051438530,-151.0,0.00023976,2]
[376613485,1754051438539,-151.0,0.00023976,2]
[376613486,1754051438548,-151.0,0.00023976,2]
[376613487,1754051438557,-151.0,0.00023976,2]
[376613488,1754051438567,-151.0,0.00023976,2]
[376613489,1754051438576,-151.0,0.00023976,2]
[376613490,1754051438586,-151.0,0.00023976,2]
[376613491,1754051438595,-151.0,0.00023976,2]
[376613492,1754051438604,-151.0,0.00023976,2]
[376613493,1754051438613,-281.84961639,0.00023976,2]
[376613494,1754051438623,-100000.0,0.0002399,2]
[376613495,1754051438632,-774.98991928,0.0002416,2]
[376613496,1754051438641,-611.8,0.0002426,3]
[376613497,1754051438650,-305.9,0.0002426,3]
[376613498,1754051438659,-239.56077104,0.00024297,2]
[376613499,1754051438668,-1223.62,0.0002435,3]
[376613500,1754051438677,-774.98991926,0.00024359,2]
[376613501,1754051438686,-2447.24,0.0002436,3]
[376613502,1754051438695,-412.05,0.00024422,2]
[376613503,1754051438704,-805.04182,0.00024457,2]
[376613504,1754051438713,-17892.03774226,0.00024557,3]
[376613505,1754051438722,-533.96808156,0.00024557,2]
[376613506,1754051438731,-774.98991926,0.00024557,2]
[376613507,1754051438740,-841.53699354,0.00024572,2]
[376613508,1754051438749,-1000.0,0.000246,2]
[376613509,1754051438763,-1000.0,0.000246,2]
[376613510,1754051438772,-1000.0,0.000246,2]
[376613511,1754051438782,-1000.0,0.000246,2]
[376613512,1754051438792,-1000.0,0.000246,2]
[376613513,1754051438801,-1000.0,0.000246,2]
[376613514,1754051438810,-1000.0,0.000246,2]
[376613515,1754051438820,-1000.0,0.000246,2]
[376613516,1754051438829,-1000.0,0.000246,2]
[376613517,1754051438838,-1000.0,0.000246,2]
[376613518,1754051438847,-1000.0,0.000246,2]
[376613519,1754051438856,-1000.0,0.000246,2]
[376613520,1754051438865,-1000.0,0.000246,2]
[376613521,1754051438874,-1000.0,0.000246,2]
[376613522,1754051438884,-1000.0,0.000246,2]
[376613523,1754051438893,-1000.0,0.000246,2]
[376613524,1754051438902,-1000.0,0.000246,2]
[376613525,1754051438912,-1000.0,0.000246,2]
[376613526,1754051438921,-1000.0,0.000246,2]
[376613527,1754051438930,-1000.0,0.000246,2]
[376613528,1754051438940,-1000.0,0.000246,2]
[376613529,1754051438949,-1000.0,0.000246,2]
[376613530,1754051438958,-1000.0,0.000246,2]
[376613531,1754051438967,-10499.99999901,0.000246,2]
[376613532,1754051438976,-1000.0,0.000246,2]
[376613533,1754051438985,-1000.0,0.000246,2]
[376613534,1754051438994,-1000.0,0.000246,2]
[376613535,1754051439004,-367.40167674,0.00024657,2]
[376613536,1754051439017,-827.00479046,0.00024657,2]
[376613537,1754051439026,-151.0,0.00024657,7]
[376613538,1754051439035,-151.0,0.00024657,7]
[376613539,1754051439044,-151.0,0.00024657,7]
[376613540,1754051439053,-151.0,0.00024657,7]
[376613541,1754051439063,-156.283577,0.00024657,7]
[376613542,1754051439072,-151.0,0.00024657,7]
[376613543,1754051439082,-151.0,0.00024657,7]
[376613544,1754051439092,-151.0,0.00024657,7]
[376613545,1754051439101,-151.0,0.00024657,7]
[376613546,1754051439111,-151.0,0.00024657,7]
[376613547,1754051439120,-151.0,0.00024657,7]
[376613548,1754051439129,-151.0,0.00024657,7]
[376613549,1754051439139,-151.0,0.00024657,7]
[376613550,1754051439149,-151.0,0.00024657,7]
[376613551,1754051439159,-438.53221111,0.00024657,3]
[376613552,1754051439168,-264.39802173,0.00024657,10]
[376613553,1754051439178,-461.17252775,0.00024657,10]
[376613554,1754051439187,-462.56908952,0.00024657,10]
[376613555,1754051439196,-462.12762289,0.00024657,10]
[376613556,1754051439205,-462.66433528,0.00024657,10]
[376613557,1754051439215,-460.0,0.00024657,10]
[376613558,1754051439224,-460.0,0.00024657,10]
[376613559,1754051439233,-460.0,0.00024657,10]
[376613560,1754051439243,-460.0,0.00024657,10]
[376613561,1754051439252,-221.13012276,0.00024657,10]
[376613562,1754051439267,-538.73353917,0.00024657,10]
[376613564,1754051439277,-460.0,0.00024657,10]
[376613566,1754051439287,-460.0,0.00024657,10]
[376613567,1754051439297,-460.0,0.00024657,10]
[376613568,1754051439306,-460.0,0.00024657,10]
[376613569,1754051439316,-460.0,0.00024657,10]
[376613570,1754051439325,-460.0,0.00024657,10]
[376613571,1754051439335,-460.0,0.00024657,10]
[376613572,1754051439344,-460.0,0.00024657,10]
[376613573,1754051439355,-460.0,0.00024657,10]
[376613574,1754051439364,-460.0,0.00024657,10]
[376613575,1754051439374,-460.0,0.00024657,10]
[376613577,1754051439386,-460.0,0.00024657,10]
[376613579,1754051439396,-460.0,0.00024657,10]
[376613580,1754051439405,-460.0,0.00024657,10]
[376613581,1754051439414,-460.0,0.00024657,10]
[376613582,1754051439423,-471.13627407,0.00024657,10]
[376613583,1754051439432,-1000.0,0.00024657,10]
[376613584,1754051439442,-1000.0,0.00024657,10]
[376613585,1754051439451,-1000.0,0.00024657,10]
[376613586,1754051439461,-468.7518201,0.00024657,10]
[376613587,1754051439470,-460.0,0.00024657,10]
[376613588,1754051439480,-460.0,0.00024657,10]
[376613589,1754051439489,-460.0,0.00024657,10]
[376613590,1754051439499,-460.0,0.00024657,10]
[376613591,1754051439513,-461.77916837,0.00024657,10]
[376613592,1754051439522,-460.0,0.00024657,10]
[376613593,1754051439532,-460.0,0.00024657,10]
[376613594,1754051439542,-324.35746698,0.00024657,10]
[376613595,1754051439551,-460.0,0.00024657,10]
[376613596,1754051439561,-460.0,0.00024657,10]
[376613597,1754051439570,-460.0,0.00024657,10]
[376613598,1754051439580,-293.73212244,0.00024657,10]
[376613599,1754051439591,-460.0,0.00024657,10]
[376613600,1754051439602,-460.0,0.00024657,10]
[376613601,1754051439612,-460.0,0.00024657,10]
[376613602,1754051439623,-435.08985721,0.00024657,10]
[376613603,1754051439633,-460.0,0.00024657,10]
[376613604,1754051439643,-460.0,0.00024657,10]
[376613605,1754051439653,-460.0,0.00024657,10]
[376613606,1754051439663,-460.0,0.00024657,10]
[376613607,1754051439673,-460.0,0.00024657,10]
[376613608,1754051439684,-460.0,0.00024657,10]
[376613609,1754051439694,-460.0,0.00024657,10]
[376613610,1754051439704,-460.0,0.00024657,10]
[376613612,1754051439715,-460.0,0.00024657,10]
[376613614,1754051439725,-460.0,0.00024657,10]
[376613615,1754051439735,-460.0,0.00024657,10]
[376613616,1754051439744,-461.61783483,0.00024657,10]
[376613617,1754051439754,-536.80297638,0.00024657,10]
[376613618,1754051439770,-460.0,0.00024657,10]
[376613619,1754051439780,-460.0,0.00024657,10]
[376613620,1754051439790,-460.0,0.00024657,10]
[376613621,1754051439802,-460.0,0.00024657,10]
[376613622,1754051439811,-460.0,0.00024657,10]
[376613623,1754051439821,-460.0,0.00024657,10]
[376613624,1754051439831,-460.0,0.00024657,10]
[376613625,1754051439840,-202.22447736,0.00024657,10]
[376613626,1754051439988,-460.0,0.00024657,10]
[376613627,1754051439998,-460.0,0.00024657,10]
[376613628,1754051440013,-466.38146969,0.00024657,10]
[376613629,1754051440023,-460.0,0.00024657,10]
[376613630,1754051440032,-460.0,0.00024657,10]
[376613631,1754051440041,-460.0,0.00024657,10]
[376613632,1754051440050,-460.0,0.00024657,10]
[376613633,1754051440059,-460.0,0.00024657,10]
[376613634,1754051440068,-460.0,0.00024657,10]
[376613635,1754051440077,-460.0,0.00024657,10]
[376613636,1754051440086,-460.0,0.00024657,10]
[376613637,1754051440095,-460.0,0.00024657,10]
[376613638,1754051440105,-460.0,0.00024657,10]
[376613639,1754051440114,-460.0,0.00024657,10]
[376613640,1754051440123,-175.5545931,0.00024657,10]
[376613641,1754051440132,-468.86210391,0.00024657,10]
[376613642,1754051440142,-460.0,0.00024657,10]
[376613643,1754051440151,-460.0,0.00024657,10]
[376613644,1754051440161,-189.05540183,0.00024657,10]
[376613645,1754051440170,-460.0,0.00024657,10]
[376613646,1754051440179,-460.0,0.00024657,10]
[376613647,1754051440189,-461.04516896,0.00024657,10]
[376613648,1754051440199,-460.0,0.00024657,10]
[376613649,1754051440208,-460.0,0.00024657,10]
[376613650,1754051440219,-460.0,0.00024657,10]
[376613651,1754051440230,-460.0,0.00024657,10]
[376613652,1754051440240,-460.0,0.00024657,10]
[376613653,1754051440249,-460.0,0.00024657,10]
[376613654,1754051440264,-460.0,0.00024657,10]
[376613655,1754051440274,-460.0,0.00024657,10]
[376613656,1754051440283,-460.0,0.00024657,10]
[376613657,1754051440293,-460.0,0.00024657,10]
[376613658,1754051440303,-460.0,0.00024657,10]
[376613659,1754051440312,-460.0,0.00024657,10]
[376613660,1754051440322,-460.0,0.00024657,10]
[376613661,1754051440332,-460.0,0.00024657,10]
[376613662,1754051440342,-569.14109059,0.00024657,10]
[376613663,1754051440354,-460.0,0.00024657,10]
[376613664,1754051440363,-460.0,0.00024657,10]
[376613665,1754051440372,-460.0,0.00024657,10]
[376613666,1754051440385,-460.0,0.00024657,10]
[376613667,1754051440395,-460.0,0.00024657,10]
[376613668,1754051440404,-460.0,0.00024657,10]
[376613669,1754051440413,-475.74693843,0.00024657,10]
[376613670,1754051440423,-460.0,0.00024657,10]
[376613671,1754051440433,-463.84916918,0.00024657,10]
[376613672,1754051440443,-460.87340206,0.00024657,10]
[376613673,1754051440455,-318.10082295,0.00024657,10]
[376613674,1754051440465,-460.0,0.00024657,10]
[376613675,1754051440475,-460.0,0.00024657,10]
[376613676,1754051440484,-460.0,0.00024657,10]
[376613677,1754051440494,-460.0,0.00024657,10]
[376613678,1754051440503,-460.0,0.00024657,10]
[376613679,1754051440517,-460.0,0.00024657,10]
[376613680,1754051440526,-460.0,0.00024657,10]
[376613681,1754051440536,-460.0,0.00024657,10]
[376613682,1754051440545,-460.0,0.00024657,10]
[376613683,1754051440555,-460.0,0.00024657,10]
[376613684,1754051440564,-460.0,0.00024657,10]
[376613685,1754051440574,-446.6216206,0.00024657,10]
[376613686,1754051440584,-460.0,0.00024657,10]
[376613687,1754051440594,-460.0,0.00024657,10]
[376613688,1754051440603,-151.0,0.00024657,7]
[376613689,1754051440613,-151.641184,0.00024657,7]
[376613690,1754051440622,-499.46056494,0.00024657,10]
[376613691,1754051440631,-460.0,0.00024657,10]
[376613692,1754051440640,-460.0,0.00024657,10]
[376613693,1754051440650,-460.0,0.00024657,10]
[376613694,1754051440659,-460.0,0.00024657,10]
[376613695,1754051440668,-460.0,0.00024657,10]
[376613696,1754051440677,-460.0,0.00024657,10]
[376613697,1754051440686,-460.0,0.00024657,10]
[376613698,1754051440695,-460.0,0.00024657,10]
[376613699,1754051440704,-460.0,0.00024657,10]
[376613700,1754051440714,-460.0,0.00024657,10]
[376613701,1754051440723,-460.0,0.00024657,10]
[376613702,1754051440732,-460.0,0.00024657,10]
[376613703,1754051440741,-460.0,0.00024657,10]
[376613704,1754051440750,-460.0,0.00024657,10]
[376613705,1754051440764,-460.0,0.00024657,10]
[376613706,1754051440773,-460.0,0.00024657,10]
[376613707,1754051440783,-460.0,0.00024657,10]
[376613708,1754051440792,-472.70594013,0.00024657,10]
[376613709,1754051440802,-460.0,0.00024657,10]
[376613710,1754051440812,-472.70643265,0.00024657,10]
[376613711,1754051440822,-460.0,0.00024657,10]
[376613712,1754051440831,-460.0,0.00024657,10]
[376613713,1754051440841,-460.0,0.00024657,10]
[376613714,1754051440850,-460.0,0.00024657,10]
[376613715,1754051440860,-324.390036,0.00024657,7]
[376613716,1754051440869,-460.0,0.00024657,10]
[376613717,1754051440878,-460.0,0.00024657,10]
[376613718,1754051440888,-460.0,0.00024657,10]
[376613719,1754051440897,-324.390028,0.00024657,7]
[376613720,1754051440907,-472.7944988,0.00024657,10]
[376613721,1754051440916,-460.0,0.00024657,10]
[376613722,1754051440926,-460.0,0.00024657,10]
[376613723,1754051440935,-460.0,0.00024657,10]
[376613724,1754051440944,-460.0,0.00024657,10]
[376613725,1754051440954,-460.0,0.00024657,10]
[376613726,1754051440963,-460.0,0.00024657,10]
[376613727,1754051440973,-460.0,0.00024657,10]
[376613728,1754051440984,-460.0,0.00024657,10]
[376613729,1754051440994,-460.0,0.00024657,10]
[376613730,1754051441003,-460.0,0.00024657,10]
[376613731,1754051441018,-460.0,0.00024657,10]
[376613732,1754051441028,-460.0,0.00024657,10]
[376613733,1754051441037,-460.0,0.00024657,10]
[376613734,1754051441046,-460.0,0.00024657,10]
[376613735,1754051441055,-460.0,0.00024657,10]
[376613736,1754051441065,-464.12195479,0.00024657,10]
[376613737,1754051441074,-460.0,0.00024657,10]
[376613738,1754051441083,-467.6304001,0.00024657,10]
[376613739,1754051441092,-460.0,0.00024657,10]
[376613740,1754051441101,-460.0,0.00024657,10]
[376613741,1754051441110,-151.0,0.00024657,7]
[376613742,1754051441119,-460.0,0.00024657,10]
[376613743,1754051441128,-460.0,0.00024657,10]
[376613744,1754051441138,-460.0,0.00024657,10]
[376613745,1754051441147,-460.0,0.00024657,10]
[376613746,1754051441156,-460.0,0.00024657,10]
[376613747,1754051441165,-460.0,0.00024657,10]
[376613748,1754051441175,-460.0,0.00024657,10]
[376613749,1754051441184,-460.0,0.00024657,10]
[376613750,1754051441193,-529.05,0.00024657,10]
[376613751,1754051441202,-460.0,0.00024657,10]
[376613752,1754051441211,-460.0,0.00024657,10]
[376613753,1754051441220,-460.0,0.00024657,10]
[376613754,1754051441229,-508.64803784,0.00024657,10]
[376613755,1754051441238,-500.0,0.00024657,10]
[376613756,1754051441247,-460.0,0.00024657,10]
[376613757,1754051441256,-500.0,0.00024657,10]
[376613758,1754051441270,-151.0,0.00024657,10]
[376613759,1754051441279,-460.0,0.00024657,10]
[376613760,1754051441290,-500.0,0.00024657,10]
[376613761,1754051441299,-460.0,0.00024657,10]
[376613762,1754051441309,-500.0,0.00024657,10]
[376613763,1754051441319,-500.0,0.00024657,10]
[376613764,1754051441328,-500.0,0.00024657,10]
[376613765,1754051441338,-512.29308204,0.00024657,10]
[376613766,1754051441349,-484.77359874,0.00024657,10]
[376613767,1754051441363,-318.49715297,0.00024657,10]
[376613768,1754051441373,-460.0,0.00024657,10]
[376613769,1754051441382,-500.0,0.00024657,10]
[376613770,1754051441392,-500.0,0.00024657,10]
[376613771,1754051441401,-500.0,0.00024657,10]